[Event "*** Qualifier 2: Titled Tuesday 3|2 Blitz"]
[Site "Chess.com"]
[Date "2017.04.11"]
[Round "2"]
[White "Sebastian"]
[Black "TheLancer"]
[Result "1-0"]
[WhiteElo "2697"]
[BlackElo "2476"]
[TimeControl "180+2"]
[EndTime "13:24:16 PDT"]
[Termination "Sebastian won by resignation"]

1. e4 {[%clk 0:03:02]} 1... c5 {[%clk 0:03:01]} 2. Nf3 {[%clk 0:03:02.6]} 2...
g6 {[%clk 0:03:02.6]} 3. d4 {[%clk 0:03:03.2]} 3... cxd4 {[%clk 0:03:04.5]} 4.
Nxd4 {[%clk 0:03:04]} 4... Bg7 {[%clk 0:03:05.6]} 5. c4 {[%clk 0:03:04.9]} 5...
Nc6 {[%clk 0:03:07.1]} 6. Be3 {[%clk 0:03:05.2]} 6... Nf6 {[%clk 0:03:08.7]} 7.
Nc3 {[%clk 0:03:06.7]} 7... d6 {[%clk 0:03:09.5]} 8. Be2 {[%clk 0:03:08.1]} 8...
Nxd4 {[%clk 0:03:11.2]} 9. Bxd4 {[%clk 0:03:08.6]} 9... O-O {[%clk 0:03:13.1]}
10. O-O {[%clk 0:03:07.3]} 10... Bd7 {[%clk 0:03:14.7]} 11. Qd2 {[%clk
0:03:08.2]} 11... a5 {[%clk 0:03:16.3]} 12. f3 {[%clk 0:03:06.4]} 12... Bc6
{[%clk 0:03:17.3]} 13. b3 {[%clk 0:03:06]} 13... Nd7 {[%clk 0:03:18.7]} 14. Be3
{[%clk 0:03:07.3]} 14... Nc5 {[%clk 0:03:19.5]} 15. Rab1 {[%clk 0:03:08.8]}
15... e6 {[%clk 0:03:20.8]} 16. Bd4 {[%clk 0:02:57.1]} 16... Be5 {[%clk
0:03:19.2]} 17. Qe3 {[%clk 0:02:42.1]} 17... Qf6 {[%clk 0:03:14.2]} 18. Bxe5
{[%clk 0:02:36.9]} 18... Qxe5 {[%clk 0:03:11.4]} 19. f4 {[%clk 0:02:38.1]} 19...
Qf6 {[%clk 0:03:05]} 20. Rbd1 {[%clk 0:02:36.3]} 20... Qe7 {[%clk 0:02:59.7]}
21. Rd2 {[%clk 0:02:37.4]} 21... b6 {[%clk 0:02:43.8]} 22. Bf3 {[%clk
0:02:32.5]} 22... Rad8 {[%clk 0:02:37.6]} 23. Rfd1 {[%clk 0:02:31]} 23... Ba8
{[%clk 0:02:31.5]} 24. Nb5 {[%clk 0:02:15.2]} 24... e5 {[%clk 0:02:31.4]} 25.
Nxd6 {[%clk 0:02:09.8]} 25... exf4 {[%clk 0:02:18]} 26. Qxf4 {[%clk 0:02:10.9]}
26... Ne6 {[%clk 0:02:04.1]} 27. Qe5 {[%clk 0:02:11.6]} 27... Qc7 {[%clk
0:01:56.9]} 28. Qf6 {[%clk 0:01:50.2]} 28... Qc5+ {[%clk 0:01:47.3]} 29. Kh1
{[%clk 0:01:50.6]} 29... Qe3 {[%clk 0:00:52.5]} 30. Rd3 {[%clk 0:01:46.8]} 30...
Qg5 {[%clk 0:00:16.4]} 31. Qxg5 {[%clk 0:01:47]} 31... Nxg5 {[%clk 0:00:18.3]}
32. Kg1 {[%clk 0:01:47.9]} 32... Ne6 {[%clk 0:00:16.3]} 33. Kf2 {[%clk
0:01:46.1]} 33... Rd7 {[%clk 0:00:17.6]} 34. Ke3 {[%clk 0:01:38.7]} 34... Rfd8
{[%clk 0:00:17.9]} 35. Bg4 {[%clk 0:01:39.9]} 35... Re7 {[%clk 0:00:17.6]} 36.
Bxe6 {[%clk 0:01:02.9]} 36... Rxe6 {[%clk 0:00:19.5]} 37. Kf4 {[%clk 0:01:01.1]}
37... f6 {[%clk 0:00:12.9]} 38. Rd4 {[%clk 0:00:55.9]} 38... Rd7 {[%clk
0:00:13.4]} 39. Nb5 {[%clk 0:00:44]} 39... Rxe4+ {[%clk 0:00:08.8]} 40. Rxe4
{[%clk 0:00:44.2]} 40... Rxd1 {[%clk 0:00:10.4]} 41. Re8+ {[%clk 0:00:45]} 41...
Kf7 {[%clk 0:00:12.1]} 42. Rxa8 {[%clk 0:00:46]} 42... Rd2 {[%clk 0:00:14]} 43.
g4 {[%clk 0:00:35.1]} 43... Rxh2 {[%clk 0:00:13.2]} 44. a4 {[%clk 0:00:34.8]}
44... g5+ {[%clk 0:00:13.6]} 45. Kg3 {[%clk 0:00:35.5]} 45... Rb2 {[%clk
0:00:14.6]} 46. Nd4 {[%clk 0:00:35.4]} 46... Kg6 {[%clk 0:00:14]} 47. Rg8+
{[%clk 0:00:32.9]} 47... Kf7 {[%clk 0:00:14.8]} 48. Rb8 {[%clk 0:00:34.6]} 48...
Kg6 {[%clk 0:00:15.1]} 49. Rxb6 {[%clk 0:00:35.4]} 49... Rd2 {[%clk 0:00:15.8]}
50. Rd6 {[%clk 0:00:30.2]} 50... h5 {[%clk 0:00:15.6]} 51. gxh5+ {[%clk
0:00:31.3]} 51... Kxh5 {[%clk 0:00:17.5]} 52. Nf5 {[%clk 0:00:30.9]} 52... Rb2
{[%clk 0:00:18.8]} 53. Rb6 {[%clk 0:00:22.7]} 53... Kg6 {[%clk 0:00:15.8]} 54.
Ne7+ {[%clk 0:00:23.8]} 54... Kh5 {[%clk 0:00:16.7]} 55. c5 {[%clk 0:00:19.7]}
55... Rc2 {[%clk 0:00:17.9]} 56. Rxf6 {[%clk 0:00:18.8]} 56... Rxc5 {[%clk
0:00:15.2]} 57. Rf5 {[%clk 0:00:20]} 57... Rc3+ {[%clk 0:00:16.1]} 58. Rf3
{[%clk 0:00:21.1]} 58... Rc5 {[%clk 0:00:17.3]} 59. Re3 {[%clk 0:00:22.1]} 59...
Rc2 {[%clk 0:00:13.8]} 60. Nd5 {[%clk 0:00:21.6]} 60... Rd2 {[%clk 0:00:14.5]}
61. Nf6+ {[%clk 0:00:22.2]} 61... Kg6 {[%clk 0:00:16]} 62. Ng4 {[%clk 0:00:22]}
62... Rb2 {[%clk 0:00:14.7]} 63. Nf2 {[%clk 0:00:22.3]} 63... Kf5 {[%clk
0:00:15.8]} 64. Rf3+ {[%clk 0:00:22.9]} 64... Kg6 {[%clk 0:00:16.3]} 65. Ng4
{[%clk 0:00:22.7]} 65... Rc2 {[%clk 0:00:15.8]} 66. Rf6+ {[%clk 0:00:23.4]}
66... Kg7 {[%clk 0:00:16.5]} 67. Rb6 {[%clk 0:00:25]} 67... Rc3+ {[%clk
0:00:17]} 68. Kf2 {[%clk 0:00:26.3]} 68... Kf7 {[%clk 0:00:16.3]} 69. Ne3 {[%clk
0:00:27.2]} 69... Rd3 {[%clk 0:00:15.8]} 70. Kf3 {[%clk 0:00:28.1]} 70... g4+
{[%clk 0:00:16.3]} 71. Ke4 {[%clk 0:00:28.7]} 71... Rd2 {[%clk 0:00:15.7]} 72.
Nxg4 {[%clk 0:00:29.2]} 72... Ke7 {[%clk 0:00:16.3]} 73. Ne5 {[%clk 0:00:29.9]}
73... Re2+ {[%clk 0:00:16.8]} 74. Kd4 {[%clk 0:00:30.7]} 1-0

[Event "*** Qualifier 2: Titled Tuesday 3|2 Blitz"]
[Site "Chess.com"]
[Date "2017.04.11"]
[Round "2"]
[White "sergiochess83"]
[Black "Rodalquilar"]
[Result "1-0"]
[WhiteElo "2598"]
[BlackElo "2531"]
[TimeControl "180+2"]
[EndTime "13:24:55 PDT"]
[Termination "sergiochess83 won by resignation"]

1. e4 {[%clk 0:03:02]} 1... e5 {[%clk 0:02:08.3]} 2. Nf3 {[%clk 0:03:01.9]} 2...
Nc6 {[%clk 0:02:09.6]} 3. Bb5 {[%clk 0:03:02.3]} 3... a6 {[%clk 0:02:10.4]} 4.
Ba4 {[%clk 0:03:03.3]} 4... Nf6 {[%clk 0:02:11.8]} 5. O-O {[%clk 0:03:04.5]}
5... Be7 {[%clk 0:02:12.6]} 6. d3 {[%clk 0:03:04.7]} 6... d6 {[%clk 0:02:10.5]}
7. c3 {[%clk 0:03:05.6]} 7... O-O {[%clk 0:02:11.5]} 8. Nbd2 {[%clk 0:03:06.8]}
8... Nd7 {[%clk 0:02:12.7]} 9. Re1 {[%clk 0:02:57.1]} 9... Nb6 {[%clk
0:02:13.7]} 10. Bb3 {[%clk 0:02:57.6]} 10... Kh8 {[%clk 0:02:14.7]} 11. Nf1
{[%clk 0:02:58.2]} 11... f5 {[%clk 0:02:15.3]} 12. exf5 {[%clk 0:02:59]} 12...
Bxf5 {[%clk 0:02:17.2]} 13. h3 {[%clk 0:03:00.4]} 13... Qd7 {[%clk 0:02:16.6]}
14. Ng3 {[%clk 0:03:01]} 14... Bg6 {[%clk 0:02:11]} 15. d4 {[%clk 0:03:02.3]}
15... exd4 {[%clk 0:02:10.4]} 16. Nxd4 {[%clk 0:03:03.5]} 16... Nxd4 {[%clk
0:02:11]} 17. Qxd4 {[%clk 0:03:04.6]} 17... Bf6 {[%clk 0:02:09.4]} 18. Qg4
{[%clk 0:02:59.6]} 18... Rae8 {[%clk 0:02:04.9]} 19. Be3 {[%clk 0:02:50.5]}
19... Qxg4 {[%clk 0:01:44.8]} 20. hxg4 {[%clk 0:02:50.4]} 20... Nd7 {[%clk
0:01:46.7]} 21. g5 {[%clk 0:01:49.4]} 21... Be5 {[%clk 0:01:45.9]} 22. Ne2
{[%clk 0:01:50.5]} 22... Bd3 {[%clk 0:01:13.1]} 23. f4 {[%clk 0:01:35.8]} 23...
Bxe2 {[%clk 0:01:07.9]} 24. fxe5 {[%clk 0:01:36.9]} 24... Bg4 {[%clk 0:01:09.1]}
25. exd6 {[%clk 0:01:36.1]} 25... cxd6 {[%clk 0:01:11]} 26. Bd5 {[%clk
0:01:26.4]} 26... b5 {[%clk 0:01:05.7]} 27. Bd4 {[%clk 0:01:26.5]} 27... Ne5
{[%clk 0:01:01.7]} 28. a4 {[%clk 0:00:53.5]} 28... Be6 {[%clk 0:00:36.7]} 29.
Bxe6 {[%clk 0:00:42.8]} 29... Rxe6 {[%clk 0:00:38.6]} 30. axb5 {[%clk
0:00:43.4]} 30... axb5 {[%clk 0:00:39.9]} 31. Re4 {[%clk 0:00:39.3]} 31... Rfe8
{[%clk 0:00:31.8]} 32. Ra5 {[%clk 0:00:30.9]} 32... Rb8 {[%clk 0:00:21.5]} 33.
Ra6 {[%clk 0:00:31.5]} 33... Kg8 {[%clk 0:00:18.4]} 34. b4 {[%clk 0:00:28.4]}
34... Kf7 {[%clk 0:00:08.6]} 35. Kh2 {[%clk 0:00:19.1]} 35... Rbe8 {[%clk
0:00:04.9]} 36. Rb6 {[%clk 0:00:16.4]} 36... Kg6 {[%clk 0:00:06]} 37. Rxb5
{[%clk 0:00:12.9]} 37... Kxg5 {[%clk 0:00:07.2]} 38. Kg1 {[%clk 0:00:07.6]}
38... Kf5 {[%clk 0:00:08.4]} 39. Re3 {[%clk 0:00:07.7]} 39... Kg6 {[%clk
0:00:09.5]} 40. Rg3+ {[%clk 0:00:08.4]} 40... Kf7 {[%clk 0:00:09.7]} 41. Rb7+
{[%clk 0:00:09.1]} 41... R8e7 {[%clk 0:00:11.1]} 42. Rxe7+ {[%clk 0:00:10.1]}
42... Rxe7 {[%clk 0:00:13]} 43. b5 {[%clk 0:00:12]} 43... Rb7 {[%clk 0:00:12.9]}
44. c4 {[%clk 0:00:09.5]} 44... Ke6 {[%clk 0:00:13.1]} 45. Rc3 {[%clk 0:00:08]}
45... Nd7 {[%clk 0:00:14.4]} 46. Bxg7 {[%clk 0:00:07.6]} 46... Ne5 {[%clk
0:00:15.9]} 47. Bxe5 {[%clk 0:00:08]} 47... Kxe5 {[%clk 0:00:17.1]} 48. Rh3
{[%clk 0:00:08.3]} 48... Kd4 {[%clk 0:00:17.1]} 49. Rh4+ {[%clk 0:00:09.5]}
49... Kc5 {[%clk 0:00:18.6]} 50. Kh2 {[%clk 0:00:09.9]} 50... d5 {[%clk
0:00:20]} 51. cxd5 {[%clk 0:00:10.9]} 51... Kxb5 {[%clk 0:00:19.4]} 52. Kh3
{[%clk 0:00:06.6]} 52... Kc5 {[%clk 0:00:20.8]} 53. Rh5 {[%clk 0:00:08]} 53...
Rg7 {[%clk 0:00:20.4]} 54. g4 {[%clk 0:00:09.1]} 54... Kd6 {[%clk 0:00:21.9]}
55. Kh4 {[%clk 0:00:10.2]} 55... Kc5 {[%clk 0:00:22.1]} 56. Rf5 {[%clk
0:00:11.2]} 56... Kd6 {[%clk 0:00:21.8]} 57. Kh5 {[%clk 0:00:12.6]} 57... Rg6
{[%clk 0:00:21.2]} 58. g5 {[%clk 0:00:13.9]} 58... Rg7 {[%clk 0:00:21.5]} 59.
Kh6 {[%clk 0:00:13.8]} 59... Rb7 {[%clk 0:00:22.5]} 60. Kh5 {[%clk 0:00:13.7]}
60... Rc7 {[%clk 0:00:23.2]} 61. Kh6 {[%clk 0:00:12.7]} 61... Rb7 {[%clk
0:00:24.4]} 62. Rf8 {[%clk 0:00:09.7]} 62... Kxd5 {[%clk 0:00:24.8]} 63. Rh8
{[%clk 0:00:10.9]} 63... Ke5 {[%clk 0:00:23.3]} 64. Rxh7 {[%clk 0:00:11.7]}
64... Rb6+ {[%clk 0:00:24.9]} 65. g6 {[%clk 0:00:12.3]} 65... Kf5 {[%clk
0:00:24.6]} 66. Rf7+ {[%clk 0:00:13.2]} 66... Ke6 {[%clk 0:00:26]} 67. Rf2
{[%clk 0:00:13.6]} 67... Rb1 {[%clk 0:00:26.1]} 68. g7 {[%clk 0:00:13.8]} 68...
Rh1+ {[%clk 0:00:26.7]} 69. Kg6 {[%clk 0:00:15.1]} 69... Rg1+ {[%clk 0:00:28.3]}
70. Kh7 {[%clk 0:00:16.5]} 70... Rh1+ {[%clk 0:00:30]} 71. Kg8 {[%clk
0:00:17.8]} 71... Ke7 {[%clk 0:00:31.6]} 72. Re2+ {[%clk 0:00:17.1]} 72... Kd7
{[%clk 0:00:28.1]} 73. Re4 {[%clk 0:00:17.9]} 73... Kd6 {[%clk 0:00:27.9]} 74.
Kf7 {[%clk 0:00:14.6]} 74... Rf1+ {[%clk 0:00:28.9]} 75. Kg6 {[%clk 0:00:15.5]}
75... Rg1+ {[%clk 0:00:30.3]} 76. Kf6 {[%clk 0:00:16.7]} 76... Rf1+ {[%clk
0:00:31.4]} 77. Kg5 {[%clk 0:00:17.7]} 77... Rg1+ {[%clk 0:00:32.5]} 78. Rg4
{[%clk 0:00:18.8]} 1-0

[Event "*** Qualifier 2: Titled Tuesday 3|2 Blitz"]
[Site "Chess.com"]
[Date "2017.04.11"]
[Round "2"]
[White "XDPS"]
[Black "RobertoJBM"]
[Result "0-1"]
[WhiteElo "2566"]
[BlackElo "2424"]
[TimeControl "180+2"]
[EndTime "13:25:14 PDT"]
[Termination "RobertoJBM won by resignation"]

1. Nf3 {[%clk 0:03:02]} 1... d5 {[%clk 0:03:00.2]} 2. d4 {[%clk 0:03:01.4]} 2...
c6 {[%clk 0:03:01.4]} 3. c4 {[%clk 0:03:01.7]} 3... Nf6 {[%clk 0:03:02]} 4. Nbd2
{[%clk 0:03:02.9]} 4... Bf5 {[%clk 0:03:02.2]} 5. Nh4 {[%clk 0:03:03.9]} 5...
Be6 {[%clk 0:03:02.7]} 6. Qb3 {[%clk 0:03:02]} 6... Qb6 {[%clk 0:03:02.9]} 7. c5
{[%clk 0:02:55]} 7... Qc7 {[%clk 0:03:02.8]} 8. g3 {[%clk 0:02:54.8]} 8... g6
{[%clk 0:03:01.8]} 9. Ndf3 {[%clk 0:02:53.4]} 9... Nbd7 {[%clk 0:03:00.7]} 10.
Bf4 {[%clk 0:02:53.7]} 10... Qc8 {[%clk 0:03:01.3]} 11. Ng5 {[%clk 0:02:50.4]}
11... Bf5 {[%clk 0:02:57]} 12. Nxf5 {[%clk 0:02:50.9]} 12... gxf5 {[%clk
0:02:58.9]} 13. Bh3 {[%clk 0:02:51]} 13... e6 {[%clk 0:02:59.2]} 14. Nf3 {[%clk
0:02:49.7]} 14... Bg7 {[%clk 0:02:52.7]} 15. Bd6 {[%clk 0:02:49.6]} 15... Ne4
{[%clk 0:02:53.6]} 16. Bf4 {[%clk 0:02:48.2]} 16... b6 {[%clk 0:02:41.8]} 17.
cxb6 {[%clk 0:02:48.7]} 17... axb6 {[%clk 0:02:43.7]} 18. O-O {[%clk 0:02:46.9]}
18... O-O {[%clk 0:02:44.2]} 19. Rfc1 {[%clk 0:02:39.5]} 19... c5 {[%clk
0:02:44]} 20. Qe3 {[%clk 0:02:29]} 20... Ra4 {[%clk 0:02:38.7]} 21. Qd3 {[%clk
0:02:01.4]} 21... Qa6 {[%clk 0:02:36.9]} 22. Qxa6 {[%clk 0:01:56.8]} 22... Rxa6
{[%clk 0:02:38.8]} 23. e3 {[%clk 0:01:47.6]} 23... Rfa8 {[%clk 0:02:38.7]} 24.
a3 {[%clk 0:01:48.5]} 24... c4 {[%clk 0:02:38.8]} 25. Bf1 {[%clk 0:01:39.4]}
25... b5 {[%clk 0:02:37.9]} 26. Rab1 {[%clk 0:01:40.5]} 26... Bf8 {[%clk
0:02:24.8]} 27. Rc2 {[%clk 0:01:20]} 27... Bd6 {[%clk 0:02:14.2]} 28. Bxd6
{[%clk 0:01:13.4]} 28... Nxd6 {[%clk 0:02:16.1]} 29. Ne1 {[%clk 0:01:11.7]}
29... Ra4 {[%clk 0:02:11.7]} 30. Rc3 {[%clk 0:01:04.2]} 30... b4 {[%clk
0:02:11.2]} 31. axb4 {[%clk 0:01:05.9]} 31... Rxb4 {[%clk 0:02:13.1]} 32. Nc2
{[%clk 0:01:07.6]} 32... Rb6 {[%clk 0:02:12.6]} 33. Ra3 {[%clk 0:01:05.3]} 33...
Rxa3 {[%clk 0:02:08.2]} 34. Nxa3 {[%clk 0:01:05.7]} 34... Ne4 {[%clk 0:02:09.6]}
35. Be2 {[%clk 0:00:31]} 35... Nd2 {[%clk 0:02:00.7]} 36. Rc1 {[%clk 0:00:32.2]}
36... Rxb2 {[%clk 0:02:01.1]} 37. Rc2 {[%clk 0:00:33.8]} 37... Rxc2 {[%clk
0:01:58.6]} 38. Nxc2 {[%clk 0:00:35.7]} 38... Nb6 {[%clk 0:01:59.4]} 39. f3
{[%clk 0:00:35.1]} 39... Na4 {[%clk 0:01:59.9]} 40. Kf2 {[%clk 0:00:36.7]} 40...
Nc3 {[%clk 0:02:00.5]} 41. Ke1 {[%clk 0:00:36.3]} 41... Nb3 {[%clk 0:02:01]} 42.
Bf1 {[%clk 0:00:36.9]} 42... Kf8 {[%clk 0:01:59.6]} 43. Bg2 {[%clk 0:00:37.5]}
43... Ke7 {[%clk 0:01:59.5]} 44. h3 {[%clk 0:00:38.8]} 44... Kd6 {[%clk
0:02:00.3]} 45. g4 {[%clk 0:00:40.2]} 45... fxg4 {[%clk 0:01:57.9]} 46. hxg4
{[%clk 0:00:42.1]} 46... h6 {[%clk 0:01:58.5]} 47. Kf2 {[%clk 0:00:41.1]} 47...
f6 {[%clk 0:01:55.3]} 48. Kg3 {[%clk 0:00:40.3]} 48... Ke7 {[%clk 0:01:32.2]}
49. Bf1 {[%clk 0:00:36.9]} 49... Kf7 {[%clk 0:01:32.6]} 50. Kf2 {[%clk
0:00:36.3]} 50... Kg6 {[%clk 0:01:32]} 51. Bh3 {[%clk 0:00:37.6]} 51... e5
{[%clk 0:01:31.5]} 52. f4 {[%clk 0:00:35.9]} 52... e4 {[%clk 0:01:21.3]} 53. Kg3
{[%clk 0:00:33.7]} 53... Nc1 {[%clk 0:01:15.7]} 54. Kh4 {[%clk 0:00:31.8]} 54...
Nd3 {[%clk 0:01:13.7]} 55. f5+ {[%clk 0:00:32.1]} 55... Kg7 {[%clk 0:01:14.4]}
56. Bf1 {[%clk 0:00:34]} 56... Nc1 {[%clk 0:01:06.5]} 57. Kg3 {[%clk 0:00:34.3]}
57... Nb3 {[%clk 0:01:07.5]} 58. Kf2 {[%clk 0:00:33.3]} 58... Na5 {[%clk
0:01:08.1]} 59. Nb4 {[%clk 0:00:33.4]} 59... Kf7 {[%clk 0:01:07.4]} 60. Kg3
{[%clk 0:00:33.4]} 60... Nb7 {[%clk 0:01:06.9]} 61. Kh4 {[%clk 0:00:31.2]} 61...
Nd6 {[%clk 0:01:05.1]} 62. Kg3 {[%clk 0:00:30.9]} 62... h5 {[%clk 0:01:00.9]}
63. Kf4 {[%clk 0:00:30.7]} 63... hxg4 {[%clk 0:01:00.3]} 64. Kxg4 {[%clk
0:00:32.6]} 64... Ke7 {[%clk 0:00:58.8]} 65. Kf4 {[%clk 0:00:33.1]} 65... Ndb5
{[%clk 0:00:59.4]} 66. Kg3 {[%clk 0:00:29.5]} 66... Nc7 {[%clk 0:01:00.2]} 67.
Kf2 {[%clk 0:00:30.2]} 67... Kd6 {[%clk 0:00:58.6]} 68. Ke1 {[%clk 0:00:31.7]}
68... Ne8 {[%clk 0:00:59.5]} 69. Kd2 {[%clk 0:00:32.8]} 69... Nb5 {[%clk
0:01:00.9]} 70. Bh3 {[%clk 0:00:29.6]} 70... Ng7 {[%clk 0:01:02.2]} 71. Na6
{[%clk 0:00:26.4]} 71... Na7 {[%clk 0:01:02.3]} 72. Nc5 {[%clk 0:00:25.6]} 72...
Nc6 {[%clk 0:01:02.9]} 73. Nb7+ {[%clk 0:00:21.4]} 73... Kc7 {[%clk 0:01:02.5]}
74. Nc5 {[%clk 0:00:22.3]} 74... Ne7 {[%clk 0:01:03.4]} 75. Bg4 {[%clk
0:00:19.9]} 75... Ngxf5 {[%clk 0:01:01.6]} 76. Ne6+ {[%clk 0:00:20.3]} 76... Kd6
{[%clk 0:01:02.1]} 77. Nf4 {[%clk 0:00:21.3]} 77... Ng7 {[%clk 0:01:00.2]} 78.
Bd1 {[%clk 0:00:21.6]} 78... Ne6 {[%clk 0:00:59.5]} 79. Nh5 {[%clk 0:00:21.7]}
79... f5 {[%clk 0:00:59.8]} 80. Kc3 {[%clk 0:00:22.5]} 80... Ng6 {[%clk
0:01:00.7]} 81. Be2 {[%clk 0:00:20]} 81... f4 {[%clk 0:01:01.4]} 82. Bg4 {[%clk
0:00:18.5]} 82... f3 {[%clk 0:01:01.6]} 83. Bh3 {[%clk 0:00:19.8]} 83... Ng5
{[%clk 0:01:01.9]} 84. Bf1 {[%clk 0:00:21.4]} 84... Nh4 {[%clk 0:01:00.4]} 85.
Ng3 {[%clk 0:00:22.2]} 85... Ke6 {[%clk 0:01:00.3]} 86. Kd2 {[%clk 0:00:23]}
86... Nf5 {[%clk 0:00:59.1]} 87. Nh5 {[%clk 0:00:23.8]} 87... Kd6 {[%clk
0:00:58.5]} 88. Nf6 {[%clk 0:00:23.2]} 88... Ng3 {[%clk 0:00:57.8]} 89. Ke1
{[%clk 0:00:24.4]} 89... c3 {[%clk 0:00:56.9]} 90. Ba6 {[%clk 0:00:21.8]} 90...
f2+ {[%clk 0:00:56.2]} 91. Kxf2 {[%clk 0:00:22.1]} 91... c2 {[%clk 0:00:56.9]}
92. Kxg3 {[%clk 0:00:23.5]} 92... c1=Q {[%clk 0:00:58]} 0-1

[Event "*** Qualifier 2: Titled Tuesday 3|2 Blitz"]
[Site "Chess.com"]
[Date "2017.04.11"]
[Round "2"]
[White "VMikhalevski"]
[Black "joppie2"]
[Result "0-1"]
[WhiteElo "2542"]
[BlackElo "2553"]
[TimeControl "180+2"]
[EndTime "13:25:22 PDT"]
[Termination "joppie2 won by checkmate"]

1. Nf3 {[%clk 0:03:02]} 1... d5 {[%clk 0:02:55.1]} 2. g3 {[%clk 0:03:01.8]} 2...
Nc6 {[%clk 0:02:56.7]} 3. d4 {[%clk 0:03:01]} 3... Bf5 {[%clk 0:02:58.2]} 4. Bg2
{[%clk 0:02:59.2]} 4... Nb4 {[%clk 0:02:59.7]} 5. Na3 {[%clk 0:03:00.1]} 5... e6
{[%clk 0:03:01]} 6. c3 {[%clk 0:02:58.2]} 6... Nc6 {[%clk 0:03:01.3]} 7. Nc2
{[%clk 0:02:54.6]} 7... Be4 {[%clk 0:03:02.4]} 8. O-O {[%clk 0:02:53.7]} 8...
Be7 {[%clk 0:03:02]} 9. Nce1 {[%clk 0:02:53.3]} 9... Nf6 {[%clk 0:03:01.9]} 10.
Nd3 {[%clk 0:02:53.6]} 10... O-O {[%clk 0:03:02.5]} 11. Bf4 {[%clk 0:02:51.3]}
11... h6 {[%clk 0:03:03.2]} 12. Qd2 {[%clk 0:02:44.6]} 12... Bd6 {[%clk
0:03:00.1]} 13. Bxd6 {[%clk 0:02:39.7]} 13... cxd6 {[%clk 0:03:01]} 14. Bh3
{[%clk 0:02:39.1]} 14... Rb8 {[%clk 0:02:51.1]} 15. Nh4 {[%clk 0:02:37.2]} 15...
Bh7 {[%clk 0:02:50.8]} 16. Bg2 {[%clk 0:02:33.6]} 16... Ne4 {[%clk 0:02:51.1]}
17. Qd1 {[%clk 0:02:31.1]} 17... g5 {[%clk 0:02:41.7]} 18. Nf3 {[%clk
0:02:30.5]} 18... f5 {[%clk 0:02:42.3]} 19. Nfe1 {[%clk 0:02:21.6]} 19... Kh8
{[%clk 0:02:23.1]} 20. f3 {[%clk 0:02:15]} 20... Nf6 {[%clk 0:02:24.3]} 21. f4
{[%clk 0:02:02.1]} 21... g4 {[%clk 0:02:24]} 22. Nc2 {[%clk 0:01:55.2]} 22... h5
{[%clk 0:02:24.7]} 23. Kf2 {[%clk 0:01:48]} 23... h4 {[%clk 0:02:24.8]} 24. e3
{[%clk 0:01:24]} 24... Kg7 {[%clk 0:02:12.5]} 25. Qe2 {[%clk 0:01:21.2]} 25...
Rh8 {[%clk 0:02:11.7]} 26. Rg1 {[%clk 0:01:16.8]} 26... Bg6 {[%clk 0:02:10.4]}
27. Ke1 {[%clk 0:01:13.5]} 27... hxg3 {[%clk 0:01:44.9]} 28. hxg3 {[%clk
0:01:13.4]} 28... Na5 {[%clk 0:01:43.8]} 29. Kd1 {[%clk 0:01:03.7]} 29... Be8
{[%clk 0:01:43.6]} 30. Nf2 {[%clk 0:01:00.7]} 30... Nc4 {[%clk 0:01:42.8]} 31.
b3 {[%clk 0:00:58.1]} 31... Na5 {[%clk 0:01:35.6]} 32. Kc1 {[%clk 0:00:58.2]}
32... Qc7 {[%clk 0:01:32.3]} 33. Kb2 {[%clk 0:00:57.8]} 33... Rc8 {[%clk
0:01:33.3]} 34. Qd2 {[%clk 0:00:57.3]} 34... Qb6 {[%clk 0:01:32.3]} 35. Na3
{[%clk 0:00:54]} 35... Ba4 {[%clk 0:01:31.2]} 36. Qc2 {[%clk 0:00:50.6]} 36...
Rh2 {[%clk 0:01:31.8]} 37. Rab1 {[%clk 0:00:48.9]} 37... Nh5 {[%clk 0:01:31]}
38. Ka1 {[%clk 0:00:37.1]} 38... Bd7 {[%clk 0:01:24.5]} 39. Rh1 {[%clk
0:00:37.1]} 39... Rxh1 {[%clk 0:01:15.8]} 40. Nxh1 {[%clk 0:00:36.2]} 40... Nc6
{[%clk 0:01:11.7]} 41. Qd2 {[%clk 0:00:35.7]} 41... Qa5 {[%clk 0:01:10.9]} 42.
Nc2 {[%clk 0:00:35.5]} 42... Ne7 {[%clk 0:01:11.9]} 43. Kb2 {[%clk 0:00:35]}
43... Ng8 {[%clk 0:01:10.6]} 44. Ne1 {[%clk 0:00:32.1]} 44... Ngf6 {[%clk
0:01:08.6]} 45. Nd3 {[%clk 0:00:32.9]} 45... Bb5 {[%clk 0:01:09.2]} 46. Ndf2
{[%clk 0:00:33.2]} 46... Qc7 {[%clk 0:01:08.3]} 47. Rc1 {[%clk 0:00:32.8]} 47...
Qb6 {[%clk 0:01:06.9]} 48. Ka1 {[%clk 0:00:32.9]} 48... a5 {[%clk 0:01:07.8]}
49. a4 {[%clk 0:00:29.6]} 49... Bd7 {[%clk 0:01:07.6]} 50. Ka2 {[%clk
0:00:30.1]} 50... Qa6 {[%clk 0:01:03.6]} 51. Bf1 {[%clk 0:00:30.4]} 51... b5
{[%clk 0:01:03.4]} 52. Qb2 {[%clk 0:00:27.1]} 52... Qb6 {[%clk 0:01:03.4]} 53.
Qa3 {[%clk 0:00:24.7]} 53... Kg6 {[%clk 0:00:56.9]} 54. Rc2 {[%clk 0:00:22.1]}
54... b4 {[%clk 0:00:57]} 55. Qb2 {[%clk 0:00:21.3]} 55... bxc3 {[%clk
0:00:49.5]} 56. Rxc3 {[%clk 0:00:22.4]} 56... Rb8 {[%clk 0:00:51.4]} 57. Qa3
{[%clk 0:00:22.2]} 57... Rb7 {[%clk 0:00:45.6]} 58. Be2 {[%clk 0:00:22.7]} 58...
Ng7 {[%clk 0:00:44.4]} 59. Qc1 {[%clk 0:00:22.1]} 59... Nge8 {[%clk 0:00:45.3]}
60. Nd3 {[%clk 0:00:22.1]} 60... Ne4 {[%clk 0:00:46.2]} 61. Nhf2 {[%clk
0:00:22]} 61... Nxc3+ {[%clk 0:00:45.7]} 62. Qxc3 {[%clk 0:00:22.7]} 62... Nc7
{[%clk 0:00:45]} 63. Nb2 {[%clk 0:00:22.4]} 63... Rb8 {[%clk 0:00:42.4]} 64. Bf1
{[%clk 0:00:23]} 64... Rh8 {[%clk 0:00:39.6]} 65. Nbd1 {[%clk 0:00:23.3]} 65...
Rb8 {[%clk 0:00:39.5]} 66. Nb2 {[%clk 0:00:23.8]} 66... Na6 {[%clk 0:00:38.4]}
67. Bxa6 {[%clk 0:00:23.7]} 67... Qxa6 {[%clk 0:00:40.3]} 68. Nfd3 {[%clk
0:00:24.8]} 68... Qb6 {[%clk 0:00:40]} 69. Nc1 {[%clk 0:00:22.5]} 69... Rc8
{[%clk 0:00:41.3]} 70. Qd2 {[%clk 0:00:23.4]} 70... Qc7 {[%clk 0:00:38.4]} 71.
Ncd3 {[%clk 0:00:22.5]} 71... Qc3 {[%clk 0:00:39.7]} 72. Qh2 {[%clk 0:00:19.5]}
72... Rb8 {[%clk 0:00:39]} 73. b4 {[%clk 0:00:17.6]} 73... axb4 {[%clk
0:00:39.5]} 74. Qh4 {[%clk 0:00:19.2]} 74... b3+ {[%clk 0:00:30.3]} 75. Ka3
{[%clk 0:00:19.9]} 75... Bxa4 {[%clk 0:00:23.2]} 76. Qg5+ {[%clk 0:00:20.3]}
76... Kf7 {[%clk 0:00:24.1]} 77. Qh5+ {[%clk 0:00:21.4]} 77... Ke7 {[%clk
0:00:23.4]} 78. Qh4+ {[%clk 0:00:20.7]} 78... Kd7 {[%clk 0:00:23]} 79. Qh7+
{[%clk 0:00:19]} 79... Kc8 {[%clk 0:00:16.7]} 80. Qg8+ {[%clk 0:00:19.4]} 80...
Kc7 {[%clk 0:00:17.1]} 81. Qf7+ {[%clk 0:00:17.6]} 81... Bd7 {[%clk 0:00:18]}
82. Na4 {[%clk 0:00:11.5]} 82... Qa1# {[%clk 0:00:19]} 0-1